[Event "Chinese Chess League 2019"]
[Site "Shen Yang"]
[Date "2019.12.06"]
[Round "21.29"]
[White "Atalik, Ekaterina"]
[Black "Zhu, Jiner"]
[Result "0-1"]
[ECO "E06"]
[WhiteElo "2462"]
[BlackElo "2468"]
[Annotator "ChessBase"]
[PlyCount "58"]
[EventDate "2019.04.09"]
[EventType "team-tourn"]
[EventCountry "CHN"]
[SourceTitle "playchess.com"]
[Source "ChessBase"]
[SourceQuality "1"]
[TimeControl "5400+30"]

1. d4 {[%emt 0:00:00]} Nf6 {[%emt 0:00:00]} 2. Nf3 {[%emt 0:00:00]} e6 {[%emt 0:00:00]} 3. g3 {[%emt 0:00:11]} d5 {[%emt 0:00:27]} 4. Bg2 {[%emt 0:00:52]} Be7 {[%emt 0:00:14]} 5. c4 {[%emt 0:00:26]} O-O {[%emt 0:00:33]} 6. Nc3 {[%emt 0:00:36]} dxc4 {[%emt 0:01:56]} 7. Ne5 {[%emt 0:00:40]} Nc6 {[%emt 0:16:08]} 8. Bxc6 {[%emt 0:00:20]} bxc6 {[%emt 0:00:06]} 9. Nxc6 {[%emt 0:00:09]} Qe8 {[%emt 0:00:04]} 10. Nxe7+ {[%emt 0:00:14]} Qxe7 {[%emt 0:00:04]} 11. Qa4 {[%emt 0:00:14]} Bb7 {[%emt 0:09:07]} 12. O-O {[%emt 0:03:56]} e5 {[%emt 0:01:25]} 13. dxe5 {[%emt 0:06:32]} Ng4 {[%emt 0:02:02]} 14. Qxc4 {[%emt 0:05:54]} Nxe5 {[%emt 0:03:05]} 15. Qb3 {[%emt 0:07:30]} Rab8 {[%emt 0:00:51]} 16. Qc2 {[%emt 0:00:51]} Qe6 {[%emt 0:16:30]} 17. f3 {[%emt 0:07:19]} h5 {[%emt 0:04:47]} 18. Bg5 {[%emt 0:07:16]} Rfe8 {[%emt 0:08:57]} 19. Rad1 {[%emt 0:08:34]} Ng6 {[%emt 0:04:01]} 20. e4 {[%emt 0:09:29]} h4 {[%emt 0:03:25]} 21. Bc1 {[%emt 0:04:45]} Ba6 {[%emt 0:03:51]} 22. Rfe1 {[%emt 0:04:52]} Ne5 {[%emt 0:00:26]} 23. Re3 {[%emt 0:04:11]} Rbd8 {[%emt 0:06:03]} 24. g4 {[%emt 0:18:20]} c6 {[%emt 0:01:50]} 25. Kg2 {[%emt 0:02:51]} Qf6 {[%emt 0:00:24]} 26. Rxd8 {[%emt 0:05:33]} Rxd8 {[%emt 0:00:06]} 27. Ne2 {[%emt 0:00:45]} Bd3 {[%emt 0:01:53]} 28. Qc3 {[%emt 0:00:25]} Bxe2 {[%emt 0:01:01]} 29. Rxe2 {[%emt 0:00:53]} Rd3 {[%emt 0:00:07]} 0-1

[Event "Chinese Chess League 2019"]
[Site "Shen Yang"]
[Date "2019.12.06"]
[Round "21.30"]
[White "Ren, Xiaoyi"]
[Black "Ding, Yixin"]
[Result "1/2-1/2"]
[ECO "D85"]
[WhiteElo "2257"]
[BlackElo "2438"]
[Annotator "RC"]
[PlyCount "41"]
[EventDate "2019.04.09"]
[EventType "team-tourn"]
[EventCountry "CHN"]
[SourceTitle "playchess.com"]
[Source "ChessBase"]
[SourceQuality "1"]
[TimeControl "5400+30"]

1. d4 {[%emt 0:00:00]} Nf6 {[%emt 0:00:00]} 2. c4 {[%emt 0:00:00]} g6 {[%emt 0:00:00]} 3. Nc3 {[%emt 0:01:36]} d5 {[%emt 0:00:00]} 4. cxd5 {[%emt 0:00:46]} Nxd5 {[%emt 0:00:00]} 5. e4 {[%emt 0:00:04]} Nxc3 {[%emt 0:00:00]} 6. bxc3 {[%emt 0:00:03]} Bg7 {[%emt 0:00:00]} 7. Nf3 {[%emt 0:00:24]} c5 {[%emt 0:00:29]} 8. Bb5+ {[%emt 0:00:10]} Nc6 {[%emt 0:01:36]} 9. O-O {[%emt 0:03:02]} O-O {[%emt 0:06:27]} 10. Bxc6 {[%emt 0:00:13]} bxc6 {[%emt 0:00:02]} 11. Ba3 {[%emt 0:00:08]} cxd4 {[%emt 0:05:05]} 12. cxd4 {[%emt 0:00:32]} Bg4 {[%emt 0:03:03]} 13. Bc5 {[%emt 0:05:52]} Qd7 {[%emt 0:01:38]} 14. h3 {[%emt 0:02:07]} Bxf3 {[%emt 0:00:21]} 15. Qxf3 {[%emt 0:00:05]} Rfb8 {[%emt 0:01:31]} 16. e5 {[%emt 0:02:28]} e6 {[%emt 0:03:44]} 17. Bd6 {[%emt 0:06:22]} Rb6 {[%emt 0:01:35]} 18. Bc5 {[%emt 0:00:06]} Rbb8 {[%emt 0:02:45]} 19. Bd6 {[%emt 0:00:14]} Rb6 {[%emt 0:00:04]} 20. Bc5 {[%emt 0:00:04]} Rbb8 {[%emt 0:00:05]} 21. Bd6 {[%emt 0:00:08]} 1/2-1/2

[Event "Chinese Chess League 2019"]
[Site "Shen Yang"]
[Date "2019.12.07"]
[Round "22.1"]
[White "Wen, Yang"]
[Black "Xu, Minghui"]
[Result "1-0"]
[ECO "C54"]
[WhiteElo "2586"]
[BlackElo "2403"]
[Annotator "ChessBase"]
[PlyCount "99"]
[EventDate "2019.04.09"]
[EventType "team-tourn"]
[EventCountry "CHN"]
[SourceTitle "playchess.com"]
[Source "ChessBase"]
[SourceQuality "1"]
[TimeControl "5400+30"]

1. e4 {[%emt 0:00:00]} e5 {[%emt 0:00:32]} 2. Nf3 {[%emt 0:00:00]} Nc6 {[%emt 0:00:03]} 3. Bc4 {[%emt 0:00:00]} Bc5 {[%emt 0:00:07]} 4. c3 {[%emt 0:00:00]} Nf6 {[%emt 0:00:08]} 5. d3 {[%emt 0:00:00]} d6 {[%emt 0:00:17]} 6. O-O {[%emt 0:00:26]} a6 {[%emt 0:00:27]} 7. a4 {[%emt 0:00:09]} h6 {[%emt 0:02:24]} 8. Nbd2 {[%emt 0:01:41]} O-O {[%emt 0:00:43]} 9. h3 {[%emt 0:00:36]} Ba7 {[%emt 0:00:38]} 10. Re1 {[%emt 0:00:09]} Nh5 {[%emt 0:02:32]} 11. Nf1 {[%emt 0:08:31]} Qf6 {[%emt 0:00:11]} 12. Ne3 {[%emt 0:01:37]} Nf4 {[%emt 0:00:32]} 13. Ng4 {[%emt 0:00:34]} Qg6 {[%emt 0:01:43]} 14. Bxf4 {[%emt 0:00:11]} exf4 {[%emt 0:01:22]} 15. d4 {[%emt 0:00:51]} Bxg4 {[%emt 0:05:55]} 16. hxg4 {[%emt 0:00:06]} Qxg4 {[%emt 0:00:05]} 17. a5 {[%emt 0:10:54]} Rab8 {[%emt 0:24:14]} 18. b4 {[%emt 0:05:46]} Ne7 {[%emt 0:05:51]} 19. Qd3 {[%emt 0:02:09]} c6 {[%emt 0:03:54]} 20. Re2 {[%emt 0:00:32]} Rbe8 {[%emt 0:02:54]} 21. Rae1 {[%emt 0:00:30]} Bb8 {[%emt 0:00:53]} 22. e5 {[%emt 0:11:01]} d5 {[%emt 0:00:51]} 23. Bb3 {[%emt 0:00:07]} g6 {[%emt 0:16:21]} 24. Bc2 {[%emt 0:07:14]} Nf5 {[%emt 0:04:01]} 25. Nh2 {[%emt 0:06:48]} Qg5 {[%emt 0:02:27]} 26. Qh3 {[%emt 0:01:47]} Ng7 {[%emt 0:05:38]} 27. Nf3 {[%emt 0:19:18]} Qh5 {[%emt 0:00:36]} 28. Qd7 {[%emt 0:00:05]} Ne6 {[%emt 0:05:35]} 29. Qxb7 {[%emt 0:00:08]} g5 {[%emt 0:00:15]} 30. Qxa6 {[%emt 0:00:13]} g4 {[%emt 0:01:56]} 31. Qd3 {[%emt 0:00:08]} Ng5 {[%emt 0:00:05]} 32. Nxg5 {[%emt 0:11:17]} hxg5 {[%emt 0:00:07]} 33. Qf5 {[%emt 0:00:06]} Re6 {[%emt 0:07:30]} 34. f3 {[%emt 0:00:08]} g3 {[%emt 0:03:28]} 35. Qh3 {[%emt 0:00:10]} Qxh3 {[%emt 0:02:15]} 36. gxh3 {[%emt 0:00:01]} Re7 {[%emt 0:00:26]} 37. Bf5 {[%emt 0:00:26]} Bc7 {[%emt 0:00:30]} 38. Kg2 {[%emt 0:00:07]} Kg7 {[%emt 0:00:04]} 39. Ra2 {[%emt 0:02:09]} Bb8 {[%emt 0:00:47]} 40. Rb1 {[%emt 0:00:37]} Ba7 {[%emt 0:00:10]} 41. Raa1 {[%emt 0:04:51]} Rb8 {[%emt 0:00:15]} 42. Re1 {[%emt 0:04:08]} Rc7 {[%emt 0:00:49]} 43. Rab1 {[%emt 0:00:08]} Re7 {[%emt 0:00:43]} 44. h4 gxh4 45. Rh1 {[%emt 0:01:49]} Kh6 {[%emt 0:01:05]} 46. Rxh4+ {[%emt 0:00:55]} Kg5 {[%emt 0:00:06]} 47. Rbh1 {[%emt 0:00:04]} Kxf5 {[%emt 0:00:46]} 48. Rh6 {[%emt 0:00:10]} f6 {[%emt 0:00:26]} 49. Rxf6+ {[%emt 0:00:55]} Kg5 {[%emt 0:00:04]} 50. Rfh6 {[%emt 0:00:10]} 1-0

[Event "Chinese Chess League 2019"]
[Site "Shen Yang"]
[Date "2019.12.07"]
[Round "22.4"]
[White "Zhu, Jiner"]
[Black "Yan, Tianqi"]
[Result "1-0"]
[ECO "B42"]
[WhiteElo "2468"]
[BlackElo "2240"]
[Annotator "ChessBase"]
[PlyCount "109"]
[EventDate "2019.04.09"]
[EventType "team-tourn"]
[EventCountry "CHN"]
[SourceTitle "playchess.com"]
[Source "ChessBase"]
[SourceQuality "1"]
[TimeControl "5400+30"]

1. e4 {[%emt 0:00:00]} c5 {[%emt 0:00:00]} 2. Nf3 {[%emt 0:00:00]} e6 {[%emt 0:00:00]} 3. d4 {[%emt 0:00:00]} cxd4 {[%emt 0:00:02]} 4. Nxd4 {[%emt 0:00:00]} a6 {[%emt 0:00:12]} 5. Bd3 {[%emt 0:00:00]} Nc6 {[%emt 0:00:07]} 6. Nxc6 {[%emt 0:00:03]} dxc6 {[%emt 0:00:06]} 7. O-O {[%emt 0:00:11]} e5 {[%emt 0:01:10]} 8. Nd2 {[%emt 0:01:42]} Qc7 {[%emt 0:00:49]} 9. a4 {[%emt 0:00:08]} Nf6 {[%emt 0:01:02]} 10. Nc4 {[%emt 0:00:18]} Be6 {[%emt 0:08:23]} 11. Qf3 {[%emt 0:03:53]} Bd6 {[%emt 0:19:28]} 12. Be3 {[%emt 0:08:07]} O-O {[%emt 0:02:26]} 13. a5 {[%emt 0:00:30]} Nd7 {[%emt 0:03:10]} 14. Qg3 {[%emt 0:07:36]} Kh8 {[%emt 0:03:53]} 15. Rfd1 {[%emt 0:01:24]} Rad8 {[%emt 0:15:31]} 16. c3 {[%emt 0:09:19]} Be7 {[%emt 0:10:25]} 17. Bf1 {[%emt 0:05:33]} f6 {[%emt 0:02:03]} 18. f3 {[%emt 0:00:13]} Nc5 {[%emt 0:03:45]} 19. b4 {[%emt 0:01:13]} Nd7 {[%emt 0:00:35]} 20. Rdb1 {[%emt 0:03:34]} Ra8 {[%emt 0:05:53]} 21. Nb6 {[%emt 0:02:10]} Rab8 {[%emt 0:03:28]} 22. Qf2 {[%emt 0:02:52]} h6 {[%emt 0:05:35]} 23. Rd1 {[%emt 0:02:31]} Rbd8 {[%emt 0:00:58]} 24. Qb2 {[%emt 0:04:51]} Nb8 {[%emt 0:03:26]} 25. Re1 {[%emt 0:04:30]} Nd7 {[%emt 0:01:07]} 26. Bc4 {[%emt 0:02:06]} Qd6 {[%emt 0:04:14]} 27. Qa2 {[%emt 0:13:42]} Bxc4 {[%emt 0:00:10]} 28. Qxc4 {[%emt 0:00:04]} Nxb6 {[%emt 0:01:24]} 29. Bxb6 {[%emt 0:00:05]} Rd7 {[%emt 0:01:46]} 30. Qb3 {[%emt 0:02:50]} Qb8 {[%emt 0:00:18]} 31. Rad1 {[%emt 0:00:05]} Bd6 {[%emt 0:02:55]} 32. Re3 {[%emt 0:03:33]} Rdf7 {[%emt 0:00:44]} 33. Red3 {[%emt 0:00:27]} Be7 {[%emt 0:00:02]} 34. Rd7 {[%emt 0:00:26]} Qe8 {[%emt 0:01:17]} 35. Kh1 {[%emt 0:01:07]} f5 {[%emt 0:00:27]} 36. exf5 {[%emt 0:00:15]} Rxf5 {[%emt 0:00:13]} 37. Qe6 {[%emt 0:01:16]} Bg5 {[%emt 0:00:51]} 38. Qxe8 {[%emt 0:00:07]} Rxe8 {[%emt 0:00:02]} 39. Rxb7 {[%emt 0:00:08]} e4 {[%emt 0:00:08]} 40. fxe4 {[%emt 0:00:10]} Rxe4 {[%emt 0:00:03]} 41. Bd4 {[%emt 0:00:18]} Bf6 {[%emt 0:01:12]} 42. Bxf6 {[%emt 0:03:42]} Rxf6 {[%emt 0:00:01]} 43. h3 {[%emt 0:00:16]} Rc4 {[%emt 0:01:30]} 44. Rd3 {[%emt 0:00:13]} c5 {[%emt 0:00:30]} 45. Rg3 {[%emt 0:00:55]} cxb4 {[%emt 0:00:22]} 46. cxb4 {[%emt 0:00:07]} g5 {[%emt 0:00:38]} 47. Rd3 {[%emt 0:00:10]} Rc8 {[%emt 0:00:35]} 48. Rdd7 {[%emt 0:00:06]} Kg8 {[%emt 0:00:21]} 49. Kh2 {[%emt 0:00:09]} Re8 {[%emt 0:00:21]} 50. Rg7+ {[%emt 0:01:02]} Kf8 {[%emt 0:00:24]} 51. Rh7 {[%emt 0:00:19]} Kg8 {[%emt 0:00:07]} 52. Rbg7+ {[%emt 0:00:04]} Kf8 {[%emt 0:00:03]} 53. Ra7 {[%emt 0:00:06]} Kg8 {[%emt 0:00:05]} 54. Rhb7 {[%emt 0:00:08]} Re4 {[%emt 0:01:26]} 55. Ra8+ {[%emt 0:00:12]} 1-0

[Event "Chinese Chess League 2019"]
[Site "Shen Yang"]
[Date "2019.12.07"]
[Round "22.5"]
[White "Ding, Yixin"]
[Black "Ning, Kaiyu"]
[Result "1/2-1/2"]
[ECO "A11"]
[WhiteElo "2438"]
[BlackElo "2330"]
[Annotator "NA"]
[PlyCount "83"]
[EventDate "2019.04.09"]
[EventType "team-tourn"]
[EventCountry "CHN"]
[SourceTitle "playchess.com"]
[Source "ChessBase"]
[SourceQuality "1"]
[TimeControl "5400+30"]

1. Nf3 {[%emt 0:00:00]} d5 {[%emt 0:00:00]} 2. g3 {[%emt 0:00:00]} Bg4 {[%emt 0:00:00]} 3. Bg2 {[%emt 0:00:00]} c6 {[%emt 0:00:00]} 4. c4 {[%emt 0:00:00]} Nf6 {[%emt 0:00:00]} 5. cxd5 {[%emt 0:02:19]} Bxf3 {[%emt 0:00:30]} 6. Bxf3 {[%emt 0:00:06]} cxd5 {[%emt 0:00:04]} 7. O-O {[%emt 0:05:26]} Nc6 {[%emt 0:00:43]} 8. d4 {[%emt 0:00:38]} e6 {[%emt 0:00:03]} 9. Nc3 {[%emt 0:00:25]} Be7 {[%emt 0:15:53] A11: English Opening: 1...c6} 10. b3 {[%emt 0:03:59]} (10. e3 Rc8 11. Bd2 O-O 12. Qe2 Ne8 13. Rfd1 Nd6 14. Rac1 Qd7 15. Be1 f5 16. Bg2 Bf6 17. Na4 {1-0 (71) Karjakin,S (2760)-Sevian,S (2654) Khanty-Mansiysk 2019}) 10... O-O {[%emt 0:00:07]} 11. Bb2 {[%emt 0:00:12]} Rc8 {[%emt 0:02:42]} 12. e3 {[%emt 0:01:04]} a6 {[%emt 0:03:02]} 13. Qe2 {[%emt 0:08:52]} b5 {[%emt 0:06:03]} 14. Rfc1 {[%emt 0:01:30]} Qb6 {[%emt 0:04:58]} 15. Bg2 {[%emt 0:13:36]} Rc7 {[%emt 0:01:02] [#]} 16. Bf1 $146 {[%emt 0:00:20]} ({Predecessor:} 16. g4 Rfc8 17. g5 {0-1 (44) Ftacnik,L (2558)-Azarov,S (2635) Czechia 2015}) 16... Nd7 {[%emt 0:05:44]} 17. Qd1 {[%emt 0:12:46]} f5 {[%emt 0:04:17]} 18. a4 {[%emt 0:07:29]} b4 {[%emt 0:00:06]} 19. Ne2 {[%emt 0:00:04]} g5 {[%emt 0:03:02]} 20. Rc2 {[%emt 0:01:41]} Rfc8 {[%emt 0:00:06]} 21. Nc1 {[%emt 0:03:11]} Nf6 {[%emt 0:10:29]} 22. Nd3 {[%emt 0:00:42]} Ne4 {[%emt 0:00:45]} 23. Rac1 {[%emt 0:05:12]} g4 {[%emt 0:00:08]} 24. Nf4 {[%emt 0:03:56]} Ng5 {[%emt 0:04:02]} 25. h4 {[%emt 0:02:19]} gxh3 {[%emt 0:03:11]} 26. Nxh3 {[%emt 0:00:05]} Nxh3+ {[%emt 0:00:34]} 27. Bxh3 {[%emt 0:00:02]} Bd6 {[%emt 0:01:23]} 28. g4 {[%emt 0:04:26]} Ne7 {[%emt 0:03:05]} 29. gxf5 {[%emt 0:00:15]} exf5 {[%emt 0:01:22]} 30. Rxc7 {[%emt 0:03:38]} Rxc7 {[%emt 0:00:02]} 31. Qh5 {[%emt 0:02:56]} Rxc1+ {[%emt 0:01:10]} 32. Bxc1 {[%emt 0:00:01]} Qc6 {[%emt 0:00:30]} 33. Bb2 {[%emt 0:01:36]} Qc2 {[%emt 0:01:22] Double Attack} 34. Qe8+ $19 {[%emt 0:00:08]} Kg7 {[%emt 0:00:04]} 35. Qd7 {[%emt 0:00:04]} Bh2+ {[%emt 0:10:01]} 36. Kxh2 {[%emt 0:03:59]} Qxf2+ {[%emt 0:02:03]} 37. Kh1 {[%emt 0:03:03]} Kf7 {[%emt 0:00:18]} 38. Bg2 {[%emt 0:00:06]} Qh4+ {[%emt 0:00:13]} 39. Kg1 {[%emt 0:00:03]} Qe1+ {[%emt 0:00:03]} 40. Kh2 {[%emt 0:01:00]} Qh4+ {[%emt 0:00:04]} 41. Kg1 {[%emt 0:00:10]} Qe1+ {[%emt 0:00:08]} 42. Kh2 {[%emt 0:00:19]} 1/2-1/2

[Event "Chinese Chess League 2019"]
[Site "Shen Yang"]
[Date "2019.12.07"]
[Round "22.8"]
[White "Liu, Guanchu"]
[Black "Wang, Yiye"]
[Result "0-1"]
[ECO "C07"]
[WhiteElo "2432"]
[BlackElo "2439"]
[Annotator "ChessBase"]
[PlyCount "204"]
[EventDate "2019.04.09"]
[EventType "team-tourn"]
[EventCountry "CHN"]
[SourceTitle "playchess.com"]
[Source "ChessBase"]
[SourceQuality "1"]
[TimeControl "5400+30"]

1. e4 {[%emt 0:00:00]} e6 {[%emt 0:00:24]} 2. d4 {[%emt 0:00:00]} d5 {[%emt 0:00:09]} 3. Nd2 {[%emt 0:00:06]} c5 {[%emt 0:03:34]} 4. exd5 {[%emt 0:00:50]} Qxd5 {[%emt 0:01:56]} 5. dxc5 {[%emt 0:00:17]} Bxc5 {[%emt 0:05:25]} 6. Ngf3 {[%emt 0:00:42]} Nf6 {[%emt 0:05:59]} 7. Bc4 {[%emt 0:00:28]} Qc6 {[%emt 0:14:39]} 8. Qe2 {[%emt 0:01:23]} Nbd7 {[%emt 0:00:24]} 9. O-O {[%emt 0:00:29]} O-O {[%emt 0:00:49]} 10. Nb3 {[%emt 0:02:19]} b6 {[%emt 0:04:11]} 11. Nfd4 {[%emt 0:13:52]} Bxd4 {[%emt 0:07:39]} 12. Nxd4 {[%emt 0:00:10]} Qc5 {[%emt 0:00:03]} 13. Nb3 {[%emt 0:13:47]} Qc7 {[%emt 0:06:17]} 14. Bg5 {[%emt 0:05:32]} Bb7 {[%emt 0:00:41]} 15. Rad1 {[%emt 0:02:41]} Rac8 {[%emt 0:20:32]} 16. Bb5 {[%emt 0:02:08]} Bd5 {[%emt 0:08:20]} 17. Nd4 {[%emt 0:07:10]} h6 {[%emt 0:02:31]} 18. Bc1 {[%emt 0:14:09]} Nc5 {[%emt 0:06:04]} 19. Rfe1 {[%emt 0:08:28]} Qb7 {[%emt 0:03:57]} 20. Qf1 {[%emt 0:00:37]} a6 {[%emt 0:01:11]} 21. Be2 {[%emt 0:00:33]} b5 {[%emt 0:00:08]} 22. c4 {[%emt 0:01:31]} bxc4 {[%emt 0:01:50]} 23. Bxc4 {[%emt 0:00:04]} Rfd8 {[%emt 0:01:12]} 24. h3 {[%emt 0:01:42]} Bxc4 {[%emt 0:01:42]} 25. Qxc4 {[%emt 0:00:06]} Qd5 {[%emt 0:01:10]} 26. Qxd5 {[%emt 0:00:27]} Rxd5 {[%emt 0:00:05]} 27. b4 {[%emt 0:05:45]} Na4 {[%emt 0:01:48]} 28. Nb3 {[%emt 0:00:41]} Rc2 {[%emt 0:00:45]} 29. a3 {[%emt 0:00:03]} Nc3 {[%emt 0:00:28]} 30. Rd2 {[%emt 0:01:43]} Rdxd2 {[%emt 0:00:30]} 31. Bxd2 {[%emt 0:00:06]} Nfd5 {[%emt 0:00:18]} 32. Bxc3 {[%emt 0:05:28]} Rxc3 {[%emt 0:00:04]} 33. Rb1 {[%emt 0:00:03]} Nb6 {[%emt 0:00:21]} 34. g3 {[%emt 0:03:16]} g5 {[%emt 0:00:11]} 35. Kg2 {[%emt 0:02:07]} Kg7 {[%emt 0:00:04]} 36. b5 {[%emt 0:00:20]} axb5 {[%emt 0:00:05]} 37. Nd4 {[%emt 0:00:03]} Rxa3 {[%emt 0:00:49]} 38. Rxb5 {[%emt 0:00:06]} Nd5 {[%emt 0:00:44]} 39. h4 {[%emt 0:00:47]} Ra4 {[%emt 0:01:35]} 40. Nf3 {[%emt 0:01:26]} Kf6 {[%emt 0:00:46]} 41. hxg5+ {[%emt 0:00:11]} hxg5 {[%emt 0:00:03]} 42. Rb2 {[%emt 0:00:49]} Nc3 {[%emt 0:00:34]} 43. Rc2 {[%emt 0:00:24]} Ne4 {[%emt 0:00:24]} 44. Nd2 {[%emt 0:00:07]} Nd6 {[%emt 0:00:04]} 45. Rc6 {[%emt 0:00:28]} Nf5 {[%emt 0:00:18]} 46. Rc2 {[%emt 0:00:22]} Rd4 {[%emt 0:00:30]} 47. Nf3 {[%emt 0:00:31]} Rd1 {[%emt 0:00:22]} 48. Rd2 {[%emt 0:00:08]} Ra1 {[%emt 0:01:17]} 49. Nd4 {[%emt 0:00:12]} Ne7 {[%emt 0:00:22]} 50. Nb5 {[%emt 0:00:47]} Nd5 {[%emt 0:00:50]} 51. Rd3 {[%emt 0:00:08]} Kg6 {[%emt 0:00:45]} 52. Nd6 {[%emt 0:00:08]} Ra2 {[%emt 0:00:22]} 53. Nc4 {[%emt 0:00:17]} Kg7 {[%emt 0:00:42]} 54. Ne3 {[%emt 0:00:18]} Nf6 {[%emt 0:00:23]} 55. Rd4 {[%emt 0:00:12]} Rb2 {[%emt 0:00:30]} 56. Rc4 {[%emt 0:00:06]} Rd2 {[%emt 0:00:18]} 57. Rc2 {[%emt 0:00:13]} Rxc2 {[%emt 0:00:07]} 58. Nxc2 {[%emt 0:00:03]} g4 {[%emt 0:00:06]} 59. Ne3 {[%emt 0:04:53]} Kg6 {[%emt 0:00:04]} 60. Nc4 {[%emt 0:00:31]} Nd7 {[%emt 0:00:07]} 61. Kf1 {[%emt 0:00:40]} f5 {[%emt 0:00:08]} 62. Ke2 {[%emt 0:00:38]} Kf6 {[%emt 0:00:06]} 63. Nd6 {[%emt 0:00:19]} Ke5 {[%emt 0:00:53]} 64. Nc4+ {[%emt 0:00:15]} Kd4 {[%emt 0:00:11]} 65. Nd6 {[%emt 0:00:07]} Nb6 {[%emt 0:00:34]} 66. Nb5+ {[%emt 0:00:21]} Ke5 {[%emt 0:00:42]} 67. Nc7 {[%emt 0:00:13]} Na4 {[%emt 0:00:23]} 68. Nb5 {[%emt 0:00:11]} Ke4 {[%emt 0:00:20]} 69. Nc7 {[%emt 0:00:49]} e5 {[%emt 0:01:12]} 70. Nb5 {[%emt 0:01:21]} Kd5 {[%emt 0:01:18]} 71. Ke3 {[%emt 0:01:11]} Nb6 {[%emt 0:00:10]} 72. Ke2 {[%emt 0:01:22]} Nc4 {[%emt 0:01:12]} 73. Nc7+ {[%emt 0:00:11]} Kc6 {[%emt 0:00:48]} 74. Na6 {[%emt 0:00:12]} Nd6 {[%emt 0:00:10]} 75. Nb4+ {[%emt 0:00:20]} Kc5 {[%emt 0:00:05]} 76. Nd3+ {[%emt 0:00:12]} Kd4 {[%emt 0:00:05]} 77. Nb4 {[%emt 0:00:02]} Nc4 {[%emt 0:00:39]} 78. Na6 {[%emt 0:01:14]} f4 {[%emt 0:01:57]} 79. gxf4 {[%emt 0:01:13]} exf4 {[%emt 0:00:04]} 80. Nc7 {[%emt 0:00:56]} Ke4 {[%emt 0:00:27]} 81. Ne6 {[%emt 0:01:04]} f3+ {[%emt 0:00:27]} 82. Ke1 {[%emt 0:00:30]} Ke5 {[%emt 0:00:58]} 83. Nc5 {[%emt 0:00:13]} Kd4 {[%emt 0:00:34]} 84. Ne6+ {[%emt 0:00:18]} Kd3 {[%emt 0:00:18]} 85. Nc5+ {[%emt 0:01:44]} Kd4 {[%emt 0:00:16]} 86. Ne6+ {[%emt 0:00:04]} Kd5 {[%emt 0:00:33]} 87. Nf4+ {[%emt 0:00:41]} Ke5 {[%emt 0:00:15]} 88. Nd3+ {[%emt 0:01:03]} Kd4 {[%emt 0:00:30]} 89. Nf4 {[%emt 0:00:12]} Ne5 {[%emt 0:00:26]} 90. Kd2 {[%emt 0:01:50]} Ke4 {[%emt 0:00:27]} 91. Ne6 {[%emt 0:00:05]} g3 {[%emt 0:00:53]} 92. fxg3 {[%emt 0:03:08]} Nc4+ {[%emt 0:00:04]} 93. Kd1 {[%emt 0:00:26]} Ke3 {[%emt 0:00:49]} 94. Nf4 {[%emt 0:01:11]} f2 {[%emt 0:01:00]} 95. Ng2+ {[%emt 0:00:05]} Kf3 {[%emt 0:00:14]} 96. Nh4+ {[%emt 0:00:17]} Kxg3 {[%emt 0:00:13]} 97. Nf5+ {[%emt 0:00:09]} Kf3 {[%emt 0:00:43]} 98. Nh4+ {[%emt 0:00:08]} Kg3 {[%emt 0:00:33]} 99. Nf5+ {[%emt 0:00:05]} Kg2 {[%emt 0:00:46]} 100. Nh4+ {[%emt 0:00:05]} Kf1 {[%emt 0:00:31]} 101. Nf3 {[%emt 0:01:15]} Ne3+ {[%emt 0:00:20]} 102. Kd2 {[%emt 0:00:22]} Kg2 {[%emt 0:00:08]} 0-1

[Event "Chinese Chess League 2019"]
[Site "Shen Yang"]
[Date "2019.12.07"]
[Round "22.10"]
[White "Wang, Yu A."]
[Black "Atalik, Ekaterina"]
[Result "1/2-1/2"]
[ECO "B11"]
[WhiteElo "2275"]
[BlackElo "2462"]
[Annotator "ChessBase"]
[PlyCount "61"]
[EventDate "2019.04.09"]
[EventType "team-tourn"]
[EventCountry "CHN"]
[SourceTitle "playchess.com"]
[Source "ChessBase"]
[SourceQuality "1"]
[TimeControl "5400+30"]

1. e4 {[%emt 0:00:00]} c6 {[%emt 0:00:00]} 2. Nc3 {[%emt 0:00:00]} d5 {[%emt 0:00:00]} 3. Nf3 {[%emt 0:00:00]} Bg4 {[%emt 0:00:20]} 4. h3 {[%emt 0:00:00]} Bxf3 {[%emt 0:00:07]} 5. Qxf3 {[%emt 0:00:00]} e6 {[%emt 0:00:21]} 6. d4 {[%emt 0:00:03]} dxe4 {[%emt 0:01:43]} 7. Qxe4 {[%emt 0:00:10]} Nf6 {[%emt 0:00:26]} 8. Qd3 {[%emt 0:00:08]} Qc7 {[%emt 0:01:02]} 9. g3 {[%emt 0:04:08]} Bd6 {[%emt 0:01:21]} 10. Bg2 {[%emt 0:00:41]} Nbd7 {[%emt 0:00:29]} 11. O-O {[%emt 0:01:50]} O-O {[%emt 0:00:30]} 12. Ne4 {[%emt 0:08:23]} Nxe4 {[%emt 0:00:57]} 13. Qxe4 {[%emt 0:00:15]} e5 {[%emt 0:02:03]} 14. dxe5 {[%emt 0:08:40]} Bxe5 {[%emt 0:05:26]} 15. c3 {[%emt 0:02:24]} Rfe8 {[%emt 0:00:57]} 16. Qf3 {[%emt 0:06:06]} Bf6 {[%emt 0:03:13]} 17. Bf4 {[%emt 0:03:09]} Ne5 {[%emt 0:00:15]} 18. Bxe5 {[%emt 0:04:48]} Rxe5 {[%emt 0:00:13]} 19. Rfe1 {[%emt 0:09:11]} Rae8 {[%emt 0:00:43]} 20. Rxe5 {[%emt 0:00:18]} Qxe5 {[%emt 0:00:24]} 21. Qd3 {[%emt 0:03:12]} g6 {[%emt 0:05:16]} 22. Rd1 {[%emt 0:03:36]} Bd8 {[%emt 0:03:52]} 23. Qe4 {[%emt 0:03:00]} Qxe4 {[%emt 0:02:44]} 24. Bxe4 {[%emt 0:00:05]} Bb6 {[%emt 0:00:08]} 25. Bf3 {[%emt 0:02:32]} Re7 {[%emt 0:00:13]} 26. Kf1 {[%emt 0:00:26]} Kf8 {[%emt 0:00:26]} 27. Re1 {[%emt 0:00:22]} Rxe1+ {[%emt 0:01:33]} 28. Kxe1 {[%emt 0:00:04]} Ke7 {[%emt 0:00:25]} 29. Ke2 {[%emt 0:00:04]} h5 {[%emt 0:00:11]} 30. Be4 {[%emt 0:00:14]} Bc5 {[%emt 0:00:09]} 31. g4 {[%emt 0:00:08]} 1/2-1/2